bitfinex-derivatives/quotes_ETHF0:USTF0_20250824
["timestamp","ask_amount","ask_price","bid_price","bid_amount"]
[1756067047141,3.65361,4813.3,4813.2,3.2078]
[1756067047342,2.8203,4814.8,4813.2,3.2078]
[1756067047548,5.48861,4813.6,4813.1,5.0559]
[1756067047742,3.65361,4813.5,4813.1,3.2078]
[1756067047945,3.65361,4813.5,4813.1,5.0559]
[1756067048138,5.0428,4814.2,4813.1,5.0559]
[1756067048139,1.835,4814.2,4813.2,4.60897022]
[1756067048445,0.41557,4813.7,4813.6,3.2078]
[1756067048642,0.9853,4813.3,4812.6,3.2078]
[1756067048842,2.8203,4813.4,4812.1,3.2078]
[1756067049044,2.8203,4812.3,4811.3,3.2078]
[1756067049241,3.65361,4812.2,4812.0,5.0559]
[1756067049443,3.65361,4812.0,4811.5,0.41576]
[1756067049644,2.1218,4812.2,4811.4,3.2078]
[1756067049839,3.9568,4811.7,4811.4,3.2078]
[1756067050050,2.9715,4811.5,4811.4,3.2078]
[1756067050251,1.03905,4813.2,4809.9,1.03975]
[1756067050252,2.1218,4811.2,4811.1,0.16463242]
[1756067050448,3.9568,4811.2,4810.4,3.2078]
[1756067050649,1.835,4811.1,4810.9,3.2078]
[1756067050946,0.4156,4813.4,4812.4,0.41568]
[1756067051146,0.41562,4813.1,4813.0,3.2078]
[1756067051341,2.1218,4812.5,4812.3,3.2078]
[1756067051546,1.1365,4812.4,4812.3,3.62349]
[1756067051751,20.77377,4814.9,4812.3,3.2078]
[1756067051752,0.9853,4813.4,4812.3,3.2078]
[1756067051943,0.9853,4813.2,4812.3,3.2078]
[1756067052252,1.1365,4814.1,4813.1,3.2078]
[1756067052442,2.1218,4814.0,4813.6,3.2078]
[1756067052648,1.1365,4813.8,4813.7,0.41557]
[1756067052844,1.1365,4815.1,4814.9,0.41546]
[1756067053045,1.1365,4815.7,4814.9,3.2078]
[1756067053345,2.1218,4815.6,4815.0,3.2078]
[1756067053548,1.835,4815.5,4814.4,3.2078]
[1756067053749,3.2078,4815.9,4815.0,3.62325]
[1756067054045,1.1365,4815.7,4814.5,0.40174561]
[1756067054351,2.1218,4815.3,4814.4,3.2078]
[1756067054739,2.1218,4815.3,4813.9,1.8481]
[1756067054740,0.41547,4814.8,4814.2,3.2078]
[1756067054950,3.2078,4814.9,4813.7,3.2078]
[1756067055145,0.9853,4813.9,4813.7,3.2078]
[1756067055338,3.9568,4813.8,4813.7,3.2078]
[1756067055545,3.9568,4813.8,4812.6,3.2078]
[1756067055843,0.41564,4812.9,4812.6,3.2078]
[1756067056045,3.9568,4812.2,4811.3,3.2078]
[1756067056448,0.41572,4812.0,4811.3,3.2078]
[1756067056653,1.1365,4812.1,4811.3,3.2078]
[1756067056849,1.1365,4812.1,4810.8,3.2078]
[1756067057052,2.9715,4811.9,4810.8,3.2078]
[1756067057251,0.41575,4811.6,4811.0,3.2078]
[1756067057450,2.1218,4811.4,4811.1,3.2078]
[1756067057650,1.1365,4811.2,4810.5,3.2078]
[1756067057853,1.1365,4811.2,4811.1,3.2078]
[1756067058153,0.9853,4811.1,4810.8,0.16769304]
[1756067058352,1.1365,4811.0,4810.6,3.2078]
[1756067058559,1.1365,4810.7,4808.8,0.57777511]
[1756067058747,3.9568,4810.2,4809.3,3.2078]
[1756067059054,3.9568,4810.2,4809.6,3.2078]
[1756067059250,1.1365,4810.2,4809.6,3.2078]
[1756067059450,0.41585,4810.5,4809.6,3.2078]
[1756067059451,1.1365,4809.7,4809.6,3.2078]
[1756067059747,3.2078,4810.3,4809.4,0.41593]
[1756067059951,3.2078,4810.3,4808.5,26.237]
[1756067059952,0.9853,4809.1,4806.7,5.0559]
[1756067060152,0.41605,4808.1,4806.9,0.41615]
[1756067060556,0.41609,4807.7,4806.8,1.084]
[1756067060751,0.9853,4808.2,4807.4,0.41611]
[1756067061055,0.9853,4808.2,4806.1,1.04057]
[1756067061056,2.8203,4808.2,4807.1,3.2078]
[1756067061253,3.2078,4808.0,4806.8,0.41616]
[1756067061556,3.2078,4808.0,4807.0,0.41614]
[1756067061750,3.2078,4808.0,4807.2,0.41613]
[1756067061952,1.46712491,4811.8,4807.9,0.9853]
[1756067062254,3.2078,4811.1,4810.2,3.2078]
[1756067062555,3.2078,4810.3,4808.6,4.2918]
[1756067062756,3.2078,4811.1,4809.3,0.41594]
[1756067062951,0.48291187,4811.0,4808.7,0.416]
[1756067063153,3.2078,4810.2,4808.6,4.2918]
[1756067063556,3.2078,4809.5,4808.6,3.2078]
[1756067063856,0.9853,4809.4,4807.9,3.2078]
[1756067064251,2.8203,4809.4,4808.6,1.084]
[1756067064452,3.2078,4811.2,4809.1,3.2078]
[1756067064760,3.2078,4811.2,4810.3,3.2078]
[1756067065153,0.9853,4811.0,4809.8,3.2078]
[1756067065554,30.14613789,4814.1,4809.3,1.8481]
[1756067065555,2.8203,4810.6,4809.3,3.2078]
[1756067065749,2.8203,4810.4,4808.8,1.084]
[1756067065952,0.9853,4809.5,4808.1,4.2918]
[1756067066158,1.835,4809.3,4808.6,3.2078]
[1756067066356,1.835,4809.1,4807.3,3.2078]
[1756067066557,4.1931,4808.3,4807.3,3.2078]
[1756067066752,3.2078,4809.1,4807.4,2.9321]
[1756067067062,0.9853,4809.2,4808.0,1.084]
[1756067067263,1.835,4809.1,4808.0,1.084]
[1756067067662,0.9726,4809.0,4808.0,1.084]
[1756067069365,0.9726,4808.8,4807.8,1.1401]
[1756067069562,0.9726,4808.8,4808.2,3.2078]
[1756067069859,1.7054,4809.3,4808.7,3.2078]
[1756067070061,2.678,4809.3,4808.2,3.2078]
[1756067071065,0.9726,4809.3,4808.2,3.2078]
[1756067071366,1.7054,4810.0,4808.8,3.2078]
[1756067071862,1.7054,4810.0,4809.5,0.41592]
[1756067072063,0.9726,4810.0,4809.7,1.1401]
[1756067072259,0.9726,4810.0,4809.8,1.1401]
[1756067072455,0.9726,4810.0,4809.9,1.1401]
[1756067072661,2.678,4810.7,4809.9,1.1401]
[1756067072856,2.678,4810.7,4809.9,2.8831]
[1756067073063,0.9726,4812.7,4810.8,1.03954]
[1756067073267,3.2078,4813.7,4812.8,1.1401]
[1756067073570,3.2078,4815.8,4813.6,2.67563226]
[1756067073759,1.7054,4816.7,4815.6,1.743]
[1756067074068,1.7054,4816.7,4816.0,3.2078]
[1756067074271,0.0531,4816.6,4813.8,1.1401]
[1756067074458,3.2078,4813.9,4813.8,1.1401]
[1756067074657,3.2078,4814.2,4813.8,1.1401]
[1756067074862,3.2078,4814.2,4813.0,1.1401]
[1756067075058,3.2078,4813.6,4813.0,1.1401]
[1756067075263,3.2078,4813.1,4812.3,1.1401]
[1756067076466,3.2078,4812.5,4812.4,1.1401]
[1756067076667,3.2078,4812.5,4812.4,2.8831]
[1756067076965,3.2078,4812.5,4812.4,3.9264]
[1756067077162,3.2078,4813.4,4812.4,7.9264]
[1756067077367,0.0531,4813.7,4812.4,3.9264]
[1756067077571,0.0531,4813.7,4810.6,1.03957]
[1756067077572,0.1365,4813.5,4810.6,4.3479]
[1756067077764,3.2078,4810.7,4810.6,1.1401]
[1756067078063,3.2078,4811.5,4810.6,1.1401]
[1756067078271,3.2078,4810.8,4810.6,1.1401]
[1756067078572,3.2078,4810.8,4809.7,1.743]
[1756067078861,3.2078,4811.7,4809.8,1.1401]
[1756067079072,3.2609,4811.7,4810.1,2.8831]
[1756067079366,3.2078,4811.7,4811.1,0.41578]
[1756067079567,0.0531,4812.4,4810.3,2.8831]
[1756067079568,3.2078,4812.2,4811.8,1.0433]
[1756067079763,3.2078,4812.2,4811.3,3.2078]
[1756067079963,0.0531,4813.3,4812.0,4.3421]
[1756067080169,3.2078,4813.1,4812.4,1.1401]
[1756067080467,3.2078,4813.1,4812.5,1.743]
[1756067080858,3.2078,4813.1,4812.4,1.1401]
[1756067081058,3.2078,4813.1,4812.0,1.0433]
[1756067081260,3.2078,4812.8,4811.4,1.1401]
[1756067081466,0.0531,4812.7,4811.4,1.1401]
[1756067081769,3.2078,4812.0,4811.4,1.1401]
[1756067081965,3.2609,4812.7,4811.5,1.0433]
[1756067082167,3.2078,4812.7,4811.6,2.8831]
[1756067082366,3.2078,4812.7,4811.7,0.41574]
[1756067082672,3.2078,4812.7,4812.1,0.4157]
[1756067082974,3.2078,4812.2,4810.1,4.3479]
[1756067083268,3.2078,4810.4,4810.1,1.1401]
[1756067083470,3.2078,4810.4,4809.9,2.7863]
[1756067083672,0.41588,4810.1,4809.5,1.743]
[1756067083970,0.41598,4808.9,4808.6,0.16228961]
[1756067084172,0.41596,4809.2,4808.7,1.1401]
[1756067084472,0.41595,4809.2,4809.0,1.0433]
[1756067084668,0.41595,4809.2,4809.1,2.8831]
[1756067084874,3.2078,4810.1,4809.4,2.8831]
[1756067085073,0.41592,4809.6,4809.5,1.1401]
[1756067085366,3.62372,4809.6,4809.5,1.1401]
[1756067085968,3.2078,4809.6,4809.5,2.8831]
[1756067086363,3.2078,4809.6,4809.5,1.1401]
[1756067086774,3.2078,4809.6,4808.7,1.743]
[1756067087066,0.41606,4808.0,4807.7,1.1401]
[1756067087270,3.2078,4809.3,4807.2,1.1401]
[1756067087569,3.2078,4808.2,4807.4,2.8831]
[1756067087874,3.2078,4808.2,4807.6,1.1401]
[1756067088274,3.2078,4808.2,4807.7,0.41608]
[1756067088468,0.41605,4808.1,4807.7,1.1401]
[1756067088667,0.41605,4808.1,4807.4,2.8831]
[1756067088968,3.2078,4808.6,4807.6,1.1401]
[1756067089164,3.2078,4808.6,4806.5,1.743]
[1756067089165,0.41617,4806.8,4806.5,1.743]
[1756067089365,0.41618,4806.7,4806.5,1.743]
[1756067089670,3.2078,4806.9,4804.1,1.83875055]
[1756067089671,1.0407,4805.5,4804.1,1.83875055]
[1756067089872,3.2078,4804.6,4804.1,0.09575055]
[1756067090372,3.2078,4804.7,4804.1,0.09575055]
[1756067090572,3.2078,4805.3,4804.4,2.8831]
[1756067090774,3.2078,4804.6,4804.4,2.8831]
[1756067091070,3.2078,4805.1,4804.5,3.9264]
[1756067091270,3.2078,4805.6,4805.1,0.4163]
[1756067091474,3.2078,4805.3,4804.6,1.1401]
[1756067091672,3.2078,4805.0,4804.7,1.1401]
[1756067091971,3.2078,4805.0,4804.1,0.09575055]
[1756067092176,3.2078,4805.3,4804.1,0.51214055]
[1756067092373,3.2078,4804.2,4804.1,4.43854055]
[1756067092671,3.2078,4805.1,4804.1,2.97885055]
[1756067092866,3.2078,4804.4,4804.1,1.23585055]
[1756067093269,3.2078,4805.1,4804.3,2.7863]
[1756067093570,3.2078,4805.1,4804.3,1.743]
[1756067093765,3.2078,4805.1,4804.4,0.41637]
[1756067093969,3.2078,4804.5,4804.2,1.1401]
[1756067094369,3.2078,4804.5,4804.1,0.09575055]
[1756067094573,3.2078,4804.5,4804.3,1.1401]
[1756067094769,3.2078,4804.5,4804.4,2.8831]
[1756067094974,3.2078,4804.5,4804.4,3.9264]
[1756067095177,3.2078,4805.0,4804.9,0.41633]
[1756067095369,3.2078,4806.8,4805.2,1.1401]
[1756067095576,0.41614,4807.0,4805.4,1.1401]
[1756067095773,0.41617,4806.7,4806.1,2.8831]
[1756067096078,0.41613,4807.1,4806.2,0.41621]
[1756067096278,0.9726,4807.2,4806.1,2.8831]
[1756067096279,0.9726,4807.2,4806.5,3.2078]
[1756067096477,0.9726,4807.2,4806.1,3.9264]
[1756067096673,4.9132,4807.1,4805.5,3.2078]
[1756067097180,0.9726,4807.0,4805.5,3.2078]
[1756067097374,0.9726,4807.0,4805.4,3.29937]
[1756067097375,0.9726,4807.0,4806.0,3.2078]
[1756067097575,0.9726,4807.0,4805.5,3.62407]
[1756067097776,0.9726,4807.0,4806.0,4.9817]
[1756067098280,0.9726,4807.0,4806.0,5.39793]
[1756067098477,0.9726,4807.0,4806.0,4.9817]
[1756067098685,2.7698,4806.5,4805.6,1.0726]
[1756067098976,0.9566,4806.0,4804.9,3.2078]
[1756067099179,0.9566,4806.0,4804.9,3.62412]
[1756067099770,0.9566,4806.0,4804.9,3.2078]
[1756067100169,1.8132,4805.9,4804.9,3.2078]
[1756067100371,3.2078,4805.6,4804.9,3.2078]
[1756067101080,0.9566,4805.8,4804.9,4.2804]
[1756067101280,3.2078,4806.5,4805.4,2.8465]
[1756067101585,0.9566,4806.9,4805.6,2.8465]
[1756067101883,0.9566,4807.8,4806.1,1.04055]
[1756067102081,0.9566,4808.5,4807.5,3.2078]
[1756067102275,0.9566,4808.5,4807.1,3.899]
[1756067102479,0.9566,4808.5,4807.4,3.2078]
[1756067102686,1.8132,4808.4,4807.1,2.8465]
[1756067102873,3.2078,4808.0,4806.5,4.9817]
[1756067103079,0.9566,4806.9,4805.9,3.2078]
[1756067103386,1.8132,4806.8,4805.9,3.2078]
[1756067103576,3.2078,4806.5,4805.4,1.0726]
[1756067103881,1.8132,4805.7,4804.6,1.0726]
[1756067104774,1.8132,4805.7,4804.8,0.41632]
[1756067105174,1.8132,4805.7,4804.6,1.48895]
[1756067105981,3.2078,4805.5,4804.9,0.41632]
[1756067106181,0.9566,4805.4,4804.6,1.0726]
[1756067106483,0.9566,4804.9,4804.0,3.2078]
[1756067106682,0.9566,4804.9,4804.0,3.6242]
[1756067107088,0.9566,4804.9,4804.0,3.2078]
[1756067107384,0.9566,4804.9,4803.6,2.8465]
[1756067107781,3.9177,4804.3,4803.2,3.2078]
[1756067107977,2.7698,4804.3,4803.2,3.2078]
[1756067108283,29.967,4806.1,4801.5,3.2078]
[1756067108284,3.2078,4803.4,4801.5,3.2078]
[1756067108582,0.9566,4802.1,4801.5,3.2078]
[1756067108984,0.9566,4802.7,4801.6,2.8465]
[1756067109185,3.2078,4801.7,4800.6,1.0726]
[1756067109376,3.2078,4801.7,4800.5,3.2078]
[1756067109377,2.7698,4801.5,4800.5,3.2078]
[1756067109783,3.2078,4801.2,4800.2,1.0726]
[1756067109984,0.9566,4800.2,4798.7,3.2078]
[1756067110186,0.9566,4800.2,4795.0,20.85902]
[1756067110187,3.2078,4798.8,4796.9,3.2078]
[1756067110483,3.2078,4797.3,4795.9,3.2078]
[1756067110690,2.9611,4797.2,4795.9,3.2078]
[1756067111281,3.2078,4797.0,4795.4,1.0525]
[1756067111480,3.2078,4797.0,4795.4,2.8264]
[1756067111787,3.2078,4796.3,4794.9,0.41718]
[1756067111988,3.2078,4796.8,4795.4,0.41715]
[1756067112290,3.2078,4796.8,4795.1,1.0525]
[1756067112291,3.2078,4796.8,4795.5,2.8465]
[1756067112483,3.2078,4796.8,4794.5,3.2078]
[1756067112484,3.2078,4796.8,4796.1,2.8465]
[1756067112680,3.2078,4797.3,4796.2,1.0525]
[1756067112883,29.979,4797.8,4795.4,1.0726]
[1756067112884,3.2078,4796.3,4795.4,1.0726]
[1756067113179,2.1484,4796.3,4794.5,3.2078]
[1756067113382,3.2078,4797.3,4795.8,3.2078]
[1756067113584,0.9566,4799.0,4797.2,2.8465]
[1756067113781,3.2078,4799.2,4797.5,2.8264]
[1756067114087,1.8132,4799.6,4798.3,0.41688]
[1756067114391,2.7698,4798.0,4796.1,1.0525]
[1756067114586,1.8132,4797.9,4796.8,1.0726]
[1756067114987,0.9566,4797.8,4796.3,4.9817]
[1756067115186,3.2078,4797.4,4796.3,1.7739]
[1756067115393,2.7698,4797.1,4796.0,1.0726]
[1756067115990,2.9611,4796.1,4794.1,0.09595027]
[1756067116187,0.9566,4794.1,4792.3,3.2078]
[1756067116381,3.2078,4793.7,4792.3,3.2078]
[1756067116789,3.2078,4793.7,4791.1,1.0726]
[1756067116790,3.2078,4792.4,4791.1,1.0726]
[1756067116990,3.9177,4792.8,4791.1,1.0726]
[1756067116991,5.021,4792.8,4791.1,1.0726]
[1756067117291,3.2078,4793.0,4791.6,1.0726]
[1756067117591,3.2078,4793.5,4791.6,1.0726]
[1756067117784,5.021,4794.7,4792.3,1.04354]
[1756067117980,5.021,4794.7,4791.7,4.0]
[1756067117981,3.2078,4795.5,4794.0,3.899]
[1756067118186,189.31890613,4800.6,4794.9,3.899]
[1756067118187,3.2078,4796.1,4794.9,3.899]
[1756067118391,3.2078,4795.0,4794.1,1.0525]
[1756067118593,3.2078,4794.5,4793.6,1.0726]
[1756067118890,31.1549,4796.6,4794.1,1.0726]
[1756067119094,3.2078,4796.5,4795.2,0.41716]
[1756067119283,2.7698,4796.8,4795.3,3.899]
[1756067119483,3.2078,4797.0,4795.6,2.1251]
[1756067119682,3.2078,4796.9,4795.4,3.2078]
[1756067119885,2.9611,4796.8,4795.3,1.46965]
[1756067120187,0.9566,4797.1,4795.8,1.7739]
[1756067120393,3.2078,4797.3,4796.3,0.41706]
[1756067120588,0.9566,4798.0,4796.6,3.899]
[1756067120788,3.2078,4797.5,4796.6,1.0726]
[1756067121086,1.8132,4797.4,4796.4,3.2078]
[1756067121282,3.2078,4797.0,4794.6,3.2078]
[1756067121494,0.8173,4794.6,4793.4,0.41731]
[1756067121688,3.2078,4794.8,4794.1,1.0726]
[1756067121883,3.2078,4794.2,4794.1,1.0726]
[1756067122087,0.8173,4794.6,4793.2,2.8465]
[1756067122394,3.2078,4795.2,4793.5,2.8465]
[1756067122588,3.2078,4795.2,4792.7,3.2078]
[1756067122788,3.2078,4795.2,4793.6,0.4173]
[1756067123089,3.2078,4794.0,4792.6,0.41739]
[1756067123391,30.023,4795.9,4793.9,1.7739]
[1756067123392,3.2078,4795.1,4793.9,1.7739]
[1756067123794,3.2078,4795.1,4794.0,1.0726]
[1756067124395,3.2078,4795.1,4794.5,1.0726]
[1756067124589,3.2078,4794.6,4794.5,2.8465]
[1756067124789,4.0251,4795.4,4794.5,3.899]
[1756067124986,3.2078,4795.4,4794.7,2.8264]
[1756067125191,3.2078,4794.9,4794.8,2.8465]
[1756067125391,3.2078,4794.9,4793.9,1.0726]
[1756067125586,3.2078,4794.1,4793.8,2.8264]
[1756067125786,3.2078,4794.1,4793.9,1.0726]
[1756067125992,0.8173,4794.0,4793.1,1.0726]
[1756067126191,3.2078,4793.6,4793.2,1.7739]
[1756067126389,3.2078,4793.6,4793.4,1.0726]
[1756067126596,3.2078,4793.6,4793.5,2.8465]
[1756067126897,3.2078,4793.6,4793.5,3.899]
[1756067127095,3.2078,4794.6,4793.6,1.0726]
[1756067127297,3.2078,4794.6,4793.8,1.0726]
[1756067127694,3.2078,4794.6,4793.8,1.48988]
[1756067127895,187.698,4798.6,4793.7,2.8264]
[1756067127896,1.7986,4796.9,4795.0,0.41718]
[1756067128096,3.2078,4795.4,4794.1,3.2078]
[1756067128299,3.8416,4796.0,4795.1,3.2078]
[1756067128499,3.8416,4796.0,4794.7,1.0724]
[1756067128803,0.963,4795.5,4794.2,4.263]
[1756067128995,0.963,4795.5,4794.0,1.48967]
[1756067128996,0.963,4795.5,4794.0,1.0724]
[1756067129199,0.963,4795.5,4794.0,2.1276]
[1756067129502,0.963,4795.5,4793.7,0.41729]
[1756067129503,3.2078,4796.2,4795.1,3.62497]
[1756067129704,3.2078,4796.7,4795.6,3.2078]
[1756067129903,3.2078,4796.3,4795.6,3.2078]
[1756067130298,3.2078,4796.3,4794.3,0.41723]
[1756067130299,3.2078,4795.7,4794.4,1.0724]
[1756067130498,3.2078,4795.7,4794.5,0.01805738]
[1756067130700,5.9694,4796.2,4795.0,2.8678]
[1756067130997,11.7369992,4809.4,4794.5,0.01805738]
[1756067130998,3.2078,4795.1,4794.5,0.01805738]
[1756067131199,3.2078,4795.7,4794.5,0.01805738]
[1756067131511,1.46712491,4800.3,4794.5,0.01805738]
[1756067131512,3.2078,4796.1,4794.6,1.0724]
[1756067131702,3.2078,4796.1,4794.8,2.21259]
[1756067131902,3.2078,4796.1,4794.5,0.01805738]
[1756067131903,3.2078,4796.1,4795.4,2.8678]
[1756067133208,3.2078,4795.5,4794.7,3.2078]
[1756067133407,3.2078,4796.1,4795.2,2.8506]
[1756067134502,3.2078,4796.6,4795.8,1.0724]
[1756067135103,1.7986,4798.5,4797.1,1.7954]
[1756067135506,3.2078,4798.3,4797.1,1.7954]
[1756067135707,1.7986,4798.5,4797.2,1.0724]
[1756067135906,3.2078,4799.1,4797.5,6.0756]
[1756067136108,3.2078,4799.1,4797.5,5.0032]
[1756067136306,3.2078,4799.1,4798.0,3.2078]
[1756067136498,1.08,4800.4,4799.0,3.2078]
[1756067136698,1.08,4800.4,4799.1,1.0552]
[1756067137714,3.2078,4799.5,4798.7,2.8678]
[1756067138406,3.2078,4798.9,4798.0,1.0724]
[1756067138806,3.2078,4798.4,4797.2,1.0724]
[1756067139116,3.2078,4798.1,4797.2,1.0724]
[1756067139308,0.17596834,4798.0,4797.2,1.0724]
[1756067139504,3.2078,4797.4,4797.2,1.0724]
[1756067139903,3.2078,4797.9,4797.2,1.0724]
[1756067140111,0.17624229,4797.8,4797.2,1.0724]
[1756067140312,0.9627,4797.6,4797.2,1.0724]
[1756067140808,3.2078,4797.4,4796.5,1.0724]
[1756067141012,0.17638174,4797.3,4796.5,1.0724]
[1756067141203,3.2078,4797.8,4797.1,1.0552]
[1756067141408,3.2078,4798.3,4797.3,3.923]
[1756067141609,3.2078,4797.7,4797.3,2.8678]
[1756067141809,3.2078,4797.7,4797.3,1.0724]
[1756067142011,2.9375468,4797.6,4796.5,3.923]
[1756067142201,3.2078,4797.2,4796.5,2.1276]
[1756067142405,3.2078,4797.0,4796.6,1.0724]
[1756067142707,3.2078,4797.0,4796.7,1.0724]
[1756067142907,3.2078,4797.0,4796.8,1.7954]
[1756067143107,3.2078,4798.9,4797.2,2.1276]
[1756067143411,3.2078,4798.9,4797.8,3.2078]
[1756067143902,3.2078,4798.9,4797.7,1.0724]
[1756067144111,2.7613,4798.1,4797.1,3.2078]
[1756067144411,3.2078,4797.7,4797.1,3.2078]
[1756067145311,3.2078,4798.7,4797.4,1.0552]
[1756067145507,0.6596874,4798.6,4797.4,1.0552]
[1756067145707,3.2078,4798.7,4797.6,3.62475]
[1756067145908,3.2078,4798.7,4797.7,2.8678]
[1756067146208,1.7986,4799.1,4798.2,3.2078]
[1756067146403,1.7986,4798.5,4797.2,0.41698]
[1756067146617,1.7986,4798.5,4797.2,1.0724]
[1756067146814,0.17388367,4798.4,4797.2,1.0724]
[1756067147006,3.2078,4798.4,4797.2,1.0724]
[1756067147415,1.7986,4798.5,4797.2,1.0724]
[1756067147715,3.2078,4798.3,4797.2,1.0724]
[1756067148010,0.50264989,4798.2,4797.2,1.0724]
[1756067148315,0.50273235,4798.1,4797.2,1.0724]
[1756067148516,0.50273843,4798.0,4797.2,1.0724]
[1756067148813,3.2078,4797.7,4796.4,2.1276]
[1756067149003,1.63931785,4797.6,4796.4,1.0724]
[1756067149202,0.5025302,4797.5,4796.4,1.0724]
[1756067149407,0.67659476,4797.4,4796.4,1.0724]
[1756067149611,0.67673008,4797.3,4796.4,1.0724]
[1756067149812,0.5025302,4797.2,4796.4,1.0724]
[1756067150008,1.08,4796.9,4795.6,3.2078]
[1756067150216,2.7613,4796.7,4795.6,3.2078]
[1756067150413,3.2078,4795.9,4795.1,3.2078]
[1756067150611,2.0427,4795.5,4794.1,1.0552]
[1756067150808,0.9627,4795.2,4794.2,3.2078]
[1756067151112,0.67670226,4795.1,4794.0,1.7954]
[1756067151318,3.8413,4794.6,4793.6,3.2078]
[1756067151620,3.8413,4794.6,4791.7,1.0724]
[1756067151621,3.2078,4794.2,4791.7,1.0724]
[1756067151817,31.60370226,4794.6,4791.4,2.8678]
[1756067151818,4.0276,4792.1,4791.4,2.8678]
[1756067152010,3.2078,4792.4,4791.5,1.0724]
[1756067152211,3.2078,4793.3,4791.4,0.41749]
[1756067152415,3.2078,4793.3,4792.6,2.8506]
[1756067152613,3.2078,4793.3,4792.7,1.0724]
[1756067153112,3.2078,4792.8,4792.7,1.0724]
[1756067153521,3.2078,4792.8,4792.7,3.923]
[1756067153721,3.2078,4793.1,4792.9,2.8678]
[1756067154014,3.2078,4794.4,4793.3,2.8678]
[1756067154219,3.2078,4794.9,4793.5,2.8506]
[1756067154413,3.2078,4794.9,4794.2,1.0724]
[1756067154819,3.2078,4795.7,4794.6,2.1276]
[1756067155023,0.50144698,4795.6,4794.7,1.7954]
[1756067155221,33.2388,4796.2,4794.8,4.2802]
[1756067155418,0.67012746,4796.1,4794.9,1.0724]
[1756067155620,0.8198,4795.9,4795.1,1.0724]
[1756067155815,3.2078,4795.7,4795.1,1.0724]
[1756067156015,0.50154393,4795.6,4795.1,1.0724]
[1756067156216,3.2078,4795.2,4794.3,1.0724]
[1756067156412,1.7986,4794.6,4793.7,3.2078]
[1756067156617,3.2078,4793.8,4792.8,3.2078]
[1756067156821,3.2078,4793.8,4792.4,1.0724]
[1756067156822,3.12019055,4793.7,4792.4,1.0724]
[1756067157017,0.67046067,4793.6,4792.4,1.0724]
[1756067157218,3.2078,4793.3,4792.4,1.0724]
[1756067157619,0.50230885,4793.2,4792.4,1.0724]
[1756067157918,2.6184,4793.7,4792.4,1.0746]
[1756067158122,0.50243687,4793.6,4792.4,1.0746]
[1756067158324,3.2078,4792.9,4792.5,1.0746]
[1756067158515,0.8216,4792.7,4792.2,3.2078]
[1756067158719,5.8671,4792.9,4791.8,1.0746]
[1756067158918,2.6593,4792.2,4791.3,1.0746]
[1756067159123,3.2078,4791.8,4790.8,1.0746]
[1756067159417,3.2078,4793.1,4791.9,2.8848]
[1756067159724,3.2078,4793.1,4791.9,3.883]
[1756067160322,3.2078,4792.3,4791.9,1.0746]
[1756067160518,3.2078,4792.3,4791.4,3.2078]
[1756067160823,3.2078,4792.3,4791.3,1.0746]
[1756067161020,3.2078,4793.1,4791.8,2.8084]
[1756067161326,0.8216,4792.9,4791.7,1.0746]
[1756067161528,0.8216,4792.9,4791.8,1.8102]
[1756067161717,3.2078,4793.1,4792.1,3.2078]
[1756067161914,3.2078,4793.1,4792.2,2.0728]
[1756067162221,5.0455,4793.1,4792.5,1.0746]
[1756067162520,0.8216,4793.0,4792.5,1.0746]
[1756067162825,2.6593,4793.0,4791.7,1.0746]
[1756067163018,0.8216,4792.8,4791.6,3.2078]
[1756067163219,2.6593,4791.6,4790.8,1.0746]
[1756067163527,3.2078,4791.7,4790.8,1.0746]
[1756067163727,3.2078,4791.7,4791.1,0.41752]
[1756067163925,0.8216,4791.6,4790.8,1.0746]
[1756067164131,0.8216,4791.6,4790.3,4.2824]
[1756067164132,1.8377,4791.5,4790.3,4.2824]
[1756067164715,3.2078,4791.7,4790.5,1.8102]
[1756067164916,3.2078,4791.7,4790.4,3.883]
[1756067165125,2.6593,4791.6,4790.4,3.883]
[1756067165528,3.2078,4791.4,4790.4,3.883]
[1756067165930,2.6593,4790.8,4790.0,1.0]
[1756067166117,25.807,4791.7,4790.0,1.0]
[1756067166118,3.2078,4790.3,4790.0,1.0]
[1756067166324,2.6593,4790.1,4790.0,1.0]
[1756067166724,1.8377,4790.0,4788.8,1.0746]
[1756067167026,1.8377,4788.8,4787.8,2.0728]
[1756067167226,1.8377,4788.8,4787.8,1.0746]
[1756067167420,1.8377,4788.1,4787.3,1.0746]
[1756067167618,3.2078,4788.9,4787.7,0.9982]
[1756067167929,3.2078,4788.9,4787.8,1.0746]
[1756067168319,1.8377,4788.1,4787.0,1.0746]
[1756067168524,1.8377,4788.1,4786.6,6.0162]
[1756067168525,1.8377,4788.1,4787.1,4.206]
[1756067168732,3.2078,4788.8,4787.3,1.8102]
[1756067169132,3.2078,4788.3,4787.4,1.0746]
[1756067169433,1.8377,4787.5,4786.2,3.2078]
[1756067169628,1.8377,4787.0,4786.0,3.2078]
[1756067169929,3.2078,4787.8,4786.7,2.8848]
[1756067170125,5.0455,4788.6,4787.2,1.0746]
[1756067170319,3.2078,4787.6,4787.2,1.0746]
[1756067170526,30.05,4789.7,4786.6,1.0746]
[1756067170527,1.8377,4788.1,4786.6,1.0746]
[1756067170723,3.2078,4787.7,4786.6,1.0746]